[Event "Late-Titled-Tuesday-Blitz-October-17-2023"]
[Site "Chess.com"]
[Date "2023.10.17"]
[Round "5"]
[White "NateSolon"]
[Black "Hambardzumyan_Yuri"]
[Result "1/2-1/2"]
[WhiteElo "2617"]
[BlackElo "2480"]
[TimeControl "180+1"]
[EndTime "14:55:18 PDT"]
[Termination "Game drawn by repetition"]

1. d4 {[%clk 0:03:00.9]} 1... Nf6 {[%clk 0:03:00]} 2. Bf4 {[%clk 0:03:00.2]}
2... d5 {[%clk 0:02:59.5]} 3. e3 {[%clk 0:03:00.6]} 3... c5 {[%clk 0:02:59.5]}
4. Nf3 {[%clk 0:03:00.8]} 4... Nc6 {[%clk 0:02:57]} 5. Nbd2 {[%clk 0:03:00.7]}
5... Bg4 {[%clk 0:02:53.6]} 6. h3 {[%clk 0:03:00.3]} 6... Bxf3 {[%clk
0:02:49.3]} 7. Nxf3 {[%clk 0:03:01.2]} 7... e6 {[%clk 0:02:49.7]} 8. Be2 {[%clk
0:02:50.9]} 8... Bd6 {[%clk 0:02:45.9]} 9. dxc5 {[%clk 0:02:51.1]} 9... Bxf4
{[%clk 0:02:43.2]} 10. exf4 {[%clk 0:02:52]} 10... Qa5+ {[%clk 0:02:42.8]} 11.
c3 {[%clk 0:02:52.3]} 11... Qxc5 {[%clk 0:02:42.4]} 12. O-O {[%clk 0:02:52.3]}
12... O-O {[%clk 0:02:42.5]} 13. Bd3 {[%clk 0:02:47.7]} 13... a6 {[%clk
0:02:41.3]} 14. Re1 {[%clk 0:02:46.9]} 14... b5 {[%clk 0:02:40.5]} 15. Qe2
{[%clk 0:02:44]} 15... Rfe8 {[%clk 0:02:30.5]} 16. Rad1 {[%clk 0:02:42.9]} 16...
Rac8 {[%clk 0:02:26.4]} 17. a3 {[%clk 0:02:38.2]} 17... g6 {[%clk 0:02:17.8]}
18. g3 {[%clk 0:02:29.5]} 18... Nd7 {[%clk 0:02:14.3]} 19. h4 {[%clk 0:02:24]}
19... e5 {[%clk 0:02:13.5]} 20. fxe5 {[%clk 0:02:24.9]} 20... Ndxe5 {[%clk
0:02:14.4]} 21. Nxe5 {[%clk 0:02:22.6]} 21... Rxe5 {[%clk 0:02:12.3]} 22. Qf3
{[%clk 0:02:18.4]} 22... Rce8 {[%clk 0:02:11.3]} 23. Rxe5 {[%clk 0:02:17]} 23...
Nxe5 {[%clk 0:02:11.1]} 24. Qf4 {[%clk 0:02:11.7]} 24... Qc6 {[%clk 0:01:39.2]}
25. Bf1 {[%clk 0:02:06.9]} 25... Nc4 {[%clk 0:01:25.2]} 26. b3 {[%clk
0:01:52.9]} 26... Nxa3 {[%clk 0:01:19.8]} 27. Qc1 {[%clk 0:01:51.3]} 27... b4
{[%clk 0:01:11.7]} 28. cxb4 {[%clk 0:01:49]} 28... Qxc1 {[%clk 0:01:07.7]} 29.
Rxc1 {[%clk 0:01:49.9]} 29... Rb8 {[%clk 0:01:07]} 30. Bg2 {[%clk 0:01:25.8]}
30... d4 {[%clk 0:01:01.9]} 31. Ra1 {[%clk 0:01:12.3]} 31... Nc2 {[%clk
0:00:53.1]} 32. Rxa6 {[%clk 0:01:12.2]} 32... Rxb4 {[%clk 0:00:36]} 33. Rd6
{[%clk 0:00:51.4]} 33... Rxb3 {[%clk 0:00:30]} 34. Be4 {[%clk 0:00:51.3]} 34...
Rb1+ {[%clk 0:00:18.2]} 35. Kh2 {[%clk 0:00:40.7]} 35... Rb2 {[%clk 0:00:17.4]}
36. Kg1 {[%clk 0:00:33.9]} 36... Kg7 {[%clk 0:00:03.3]} 37. Bxc2 {[%clk
0:00:32.2]} 37... Rxc2 {[%clk 0:00:04.2]} 38. Rxd4 {[%clk 0:00:32.6]} 38... h5
{[%clk 0:00:04.7]} 39. Kg2 {[%clk 0:00:33.1]} 39... Rc6 {[%clk 0:00:03.5]} 40.
Rd5 {[%clk 0:00:33.3]} 40... Rf6 {[%clk 0:00:03.6]} 41. Ra5 {[%clk 0:00:31.5]}
41... Re6 {[%clk 0:00:04]} 42. Rb5 {[%clk 0:00:31.7]} 42... Rf6 {[%clk
0:00:04.3]} 43. f3 {[%clk 0:00:32]} 43... Re6 {[%clk 0:00:04.5]} 44. g4 {[%clk
0:00:31.9]} 44... hxg4 {[%clk 0:00:04.2]} 45. fxg4 {[%clk 0:00:32.8]} 45... Re4
{[%clk 0:00:04.2]} 46. Kf3 {[%clk 0:00:32.9]} 46... Rc4 {[%clk 0:00:04]} 47. Rb3
{[%clk 0:00:29.4]} 47... Rc1 {[%clk 0:00:03.9]} 48. Rb7 {[%clk 0:00:26.2]} 48...
Rc3+ {[%clk 0:00:03.5]} 49. Kf4 {[%clk 0:00:25.5]} 49... Rc4+ {[%clk 0:00:04]}
50. Kg3 {[%clk 0:00:26]} 50... Rc3+ {[%clk 0:00:04.3]} 51. Kg2 {[%clk
0:00:26.5]} 51... Rc2+ {[%clk 0:00:04.8]} 52. Kf3 {[%clk 0:00:26.9]} 52... Rc3+
{[%clk 0:00:05.2]} 53. Kg2 {[%clk 0:00:27.1]} 53... Rc2+ {[%clk 0:00:05.1]} 54.
Kf3 {[%clk 0:00:25.7]} 54... Rc3+ {[%clk 0:00:03.9]} 1/2-1/2

[Event "Late-Titled-Tuesday-Blitz-October-17-2023"]
[Site "Chess.com"]
[Date "2023.10.17"]
[Round "5"]
[White "Makswolf200817"]
[Black "Alexander_Donchenko"]
[Result "0-1"]
[WhiteElo "2675"]
[BlackElo "2879"]
[TimeControl "180+1"]
[EndTime "14:55:19 PDT"]
[Termination "Alexander_Donchenko won on time"]

1. d4 {[%clk 0:03:00.9]} 1... Nf6 {[%clk 0:02:59.8]} 2. c4 {[%clk 0:03:00.9]}
2... e6 {[%clk 0:03:00.3]} 3. g3 {[%clk 0:03:01.1]} 3... c5 {[%clk 0:03:00.3]}
4. d5 {[%clk 0:03:00.8]} 4... exd5 {[%clk 0:03:01.2]} 5. cxd5 {[%clk 0:03:01.7]}
5... d6 {[%clk 0:03:01.9]} 6. Nc3 {[%clk 0:03:02.4]} 6... g6 {[%clk 0:03:02.4]}
7. Bg2 {[%clk 0:03:03.2]} 7... Bg7 {[%clk 0:03:03.1]} 8. Nf3 {[%clk 0:03:03.9]}
8... O-O {[%clk 0:03:03.8]} 9. O-O {[%clk 0:03:04.6]} 9... Re8 {[%clk
0:03:04.5]} 10. Bf4 {[%clk 0:03:05.1]} 10... Bf5 {[%clk 0:03:04.8]} 11. Nh4
{[%clk 0:03:05]} 11... Bg4 {[%clk 0:03:05]} 12. Qd2 {[%clk 0:03:05.7]} 12... Na6
{[%clk 0:03:00.7]} 13. Rfe1 {[%clk 0:02:59.8]} 13... Nc7 {[%clk 0:02:58.1]} 14.
a4 {[%clk 0:02:59.2]} 14... Nh5 {[%clk 0:02:54.6]} 15. Bg5 {[%clk 0:02:54.3]}
15... Bf6 {[%clk 0:02:54]} 16. Bxf6 {[%clk 0:02:52.1]} 16... Qxf6 {[%clk
0:02:54.9]} 17. Nf3 {[%clk 0:02:43.2]} 17... a6 {[%clk 0:02:48]} 18. h3 {[%clk
0:02:37.8]} 18... Bxf3 {[%clk 0:02:45.3]} 19. Bxf3 {[%clk 0:02:37.7]} 19... Ng7
{[%clk 0:02:45.1]} 20. a5 {[%clk 0:02:35.2]} 20... Nb5 {[%clk 0:02:44]} 21. Bg2
{[%clk 0:02:23.8]} 21... Nf5 {[%clk 0:02:41.6]} 22. e3 {[%clk 0:02:21.9]} 22...
h5 {[%clk 0:02:39.9]} 23. Na4 {[%clk 0:02:17.6]} 23... Re7 {[%clk 0:02:21.1]}
24. Nb6 {[%clk 0:02:17]} 24... Rae8 {[%clk 0:02:21.2]} 25. Ra4 {[%clk
0:02:16.1]} 25... h4 {[%clk 0:02:05.9]} 26. g4 {[%clk 0:02:13.5]} 26... Nfd4
{[%clk 0:02:04.5]} 27. Qd1 {[%clk 0:02:02.4]} 27... Qg5 {[%clk 0:01:36.1]} 28.
Rf1 {[%clk 0:01:47.9]} 28... Rxe3 {[%clk 0:01:30]} 29. fxe3 {[%clk 0:01:40]}
29... Qxe3+ {[%clk 0:01:30.9]} 30. Rf2 {[%clk 0:01:34.4]} 30... Ne2+ {[%clk
0:01:13.4]} 31. Qxe2 {[%clk 0:01:34.4]} 31... Qxe2 {[%clk 0:01:12.6]} 32. Rxe2
{[%clk 0:01:35.3]} 32... Rxe2 {[%clk 0:01:12.8]} 33. b3 {[%clk 0:01:07]} 33...
Rb2 {[%clk 0:01:07.2]} 34. Re4 {[%clk 0:01:00.6]} 34... Rxb3 {[%clk 0:01:05.8]}
35. Re7 {[%clk 0:01:01.2]} 35... Nd4 {[%clk 0:00:59.9]} 36. Nc4 {[%clk
0:00:52.2]} 36... Kf8 {[%clk 0:00:43.6]} 37. Rc7 {[%clk 0:00:49.6]} 37... Ne2+
{[%clk 0:00:41.6]} 38. Kf2 {[%clk 0:00:48]} 38... Nf4 {[%clk 0:00:41.1]} 39. Bf1
{[%clk 0:00:44.1]} 39... Nxd5 {[%clk 0:00:34.5]} 40. Rd7 {[%clk 0:00:40.8]}
40... Nf6 {[%clk 0:00:32.3]} 41. Rc7 {[%clk 0:00:31]} 41... Ne4+ {[%clk
0:00:31.8]} 42. Ke2 {[%clk 0:00:21.9]} 42... Rc3 {[%clk 0:00:28.3]} 43. Nb6
{[%clk 0:00:18.6]} 43... Ng3+ {[%clk 0:00:27.6]} 44. Kf2 {[%clk 0:00:18.8]}
44... Rc2+ {[%clk 0:00:26.8]} 45. Kg1 {[%clk 0:00:13.2]} 45... Rc1 {[%clk
0:00:26.8]} 46. Rxb7 {[%clk 0:00:11.8]} 46... Rxf1+ {[%clk 0:00:27.1]} 47. Kg2
{[%clk 0:00:12.4]} 47... Ra1 {[%clk 0:00:24.9]} 48. Nc4 {[%clk 0:00:09.2]} 48...
Ne4 {[%clk 0:00:25.6]} 49. Kf3 {[%clk 0:00:09.4]} 49... d5 {[%clk 0:00:25.5]}
50. Ne5 {[%clk 0:00:09.9]} 50... Ke8 {[%clk 0:00:23.2]} 51. Rxf7 {[%clk
0:00:04.6]} 51... Rf1+ {[%clk 0:00:23]} 0-1

[Event "Late-Titled-Tuesday-Blitz-October-17-2023"]
[Site "Chess.com"]
[Date "2023.10.17"]
[Round "5"]
[White "Vigg-Sama"]
[Black "Qvalda"]
[Result "0-1"]
[WhiteElo "2194"]
[BlackElo "2396"]
[TimeControl "180+1"]
[EndTime "14:55:23 PDT"]
[Termination "Qvalda won by resignation"]

1. e4 {[%clk 0:03:00.9]} 1... e6 {[%clk 0:02:58.6]} 2. d4 {[%clk 0:02:59.4]}
2... d5 {[%clk 0:02:59.5]} 3. Nc3 {[%clk 0:02:59.4]} 3... Be7 {[%clk 0:02:58.4]}
4. h3 {[%clk 0:02:48.2]} 4... dxe4 {[%clk 0:02:48.2]} 5. Nxe4 {[%clk 0:02:47.7]}
5... Nf6 {[%clk 0:02:49.1]} 6. Nxf6+ {[%clk 0:02:46.4]} 6... Bxf6 {[%clk
0:02:50]} 7. c3 {[%clk 0:02:46.9]} 7... c5 {[%clk 0:02:49.3]} 8. dxc5 {[%clk
0:02:46.7]} 8... Qxd1+ {[%clk 0:02:50.2]} 9. Kxd1 {[%clk 0:02:47.5]} 9... Ke7
{[%clk 0:02:48.2]} 10. Ne2 {[%clk 0:02:44.6]} 10... Rd8+ {[%clk 0:02:49.1]} 11.
Kc2 {[%clk 0:02:44.1]} 11... Na6 {[%clk 0:02:47.7]} 12. Be3 {[%clk 0:02:41.1]}
12... b6 {[%clk 0:02:43.1]} 13. cxb6 {[%clk 0:02:40.8]} 13... axb6 {[%clk
0:02:44]} 14. Bxb6 {[%clk 0:02:38.1]} 14... Rd6 {[%clk 0:02:44]} 15. Bd4 {[%clk
0:02:34.7]} 15... e5 {[%clk 0:02:43.4]} 16. Be3 {[%clk 0:02:34.2]} 16... Bf5+
{[%clk 0:02:41.9]} 17. Kc1 {[%clk 0:02:31.3]} 17... Rc8 {[%clk 0:02:28.8]} 18.
g4 {[%clk 0:02:29.8]} 18... Be4 {[%clk 0:02:25.5]} 19. Rg1 {[%clk 0:02:30.1]}
19... Nb4 {[%clk 0:02:25.5]} 20. Ng3 {[%clk 0:02:19.6]} 20... Nd3+ {[%clk
0:02:06.1]} 21. Bxd3 {[%clk 0:02:19]} 21... Bxd3 {[%clk 0:02:03.4]} 22. g5
{[%clk 0:02:18.8]} 22... g6 {[%clk 0:01:54]} 23. gxf6+ {[%clk 0:02:17.6]} 23...
Kxf6 {[%clk 0:01:53.9]} 24. Rd1 {[%clk 0:02:08.9]} 24... Ke6 {[%clk 0:01:50.7]}
25. Bd2 {[%clk 0:01:54.9]} 25... f5 {[%clk 0:01:49.7]} 26. Nf1 {[%clk
0:01:52.3]} 26... f4 {[%clk 0:01:48.9]} 27. Re1 {[%clk 0:01:51.3]} 27... Kf6
{[%clk 0:01:45.4]} 28. a4 {[%clk 0:01:48.8]} 28... g5 {[%clk 0:01:43.9]} 29. a5
{[%clk 0:01:48.6]} 29... Bf5 {[%clk 0:01:38.7]} 30. a6 {[%clk 0:01:47.6]} 30...
Ra8 {[%clk 0:01:38.7]} 31. a7 {[%clk 0:01:47.8]} 31... Rd7 {[%clk 0:01:39.1]}
32. Ra5 {[%clk 0:01:46.6]} 32... Rdxa7 {[%clk 0:01:34.1]} 33. Rxa7 {[%clk
0:01:45.7]} 33... Rxa7 {[%clk 0:01:35]} 34. b4 {[%clk 0:01:46.2]} 34... Bxh3
{[%clk 0:01:32.4]} 35. c4 {[%clk 0:01:43.4]} 35... Bxf1 {[%clk 0:01:29.8]} 36.
Bc3 {[%clk 0:01:38.5]} 36... Bxc4 {[%clk 0:01:25.9]} 37. Rxe5 {[%clk 0:01:37.5]}
37... Kg6 {[%clk 0:01:24.6]} 38. Rc5 {[%clk 0:01:35.1]} 38... Be2 {[%clk
0:01:19.7]} 39. b5 {[%clk 0:01:34.1]} 39... Rb7 {[%clk 0:01:18.6]} 40. Rc6+
{[%clk 0:01:33]} 40... Kf5 {[%clk 0:01:16.5]} 41. b6 {[%clk 0:01:33.4]} 41... h5
{[%clk 0:01:15.7]} 42. Bd4 {[%clk 0:01:31.4]} 42... Bf3 {[%clk 0:01:12.7]} 43.
Rc7 {[%clk 0:01:31]} 43... Rb8 {[%clk 0:01:02.8]} 44. Rg7 {[%clk 0:01:24.3]}
44... h4 {[%clk 0:00:54.5]} 45. Kc2 {[%clk 0:01:22.2]} 45... h3 {[%clk
0:00:53.4]} 46. Rh7 {[%clk 0:01:20.3]} 46... g4 {[%clk 0:00:51.5]} 47. Kd3
{[%clk 0:01:19.5]} 47... Bg2 {[%clk 0:00:47.9]} 48. Rh5+ {[%clk 0:01:18]} 48...
Kg6 {[%clk 0:00:46.2]} 49. Rh4 {[%clk 0:01:10.8]} 49... Kg5 {[%clk 0:00:45.3]}
50. Rh7 {[%clk 0:01:10.8]} 50... g3 {[%clk 0:00:45.3]} 51. fxg3 {[%clk
0:01:10.2]} 51... fxg3 {[%clk 0:00:45.4]} 52. Rg7+ {[%clk 0:01:10.4]} 52... Kh6
{[%clk 0:00:34.9]} 53. Rxg3 {[%clk 0:00:58]} 53... h2 {[%clk 0:00:31.5]} 54.
Rxg2 {[%clk 0:00:57.9]} 54... h1=Q {[%clk 0:00:31.4]} 55. Re2 {[%clk 0:00:58.3]}
55... Qd1+ {[%clk 0:00:29.1]} 56. Rd2 {[%clk 0:00:54.8]} 56... Qf3+ {[%clk
0:00:29]} 57. Be3+ {[%clk 0:00:54.3]} 57... Kg6 {[%clk 0:00:27.2]} 58. Rf2
{[%clk 0:00:53.4]} 58... Qd5+ {[%clk 0:00:24.3]} 59. Ke2 {[%clk 0:00:52.8]}
59... Qc4+ {[%clk 0:00:22.5]} 60. Kf3 {[%clk 0:00:52]} 60... Rf8+ {[%clk
0:00:21]} 61. Kg3 {[%clk 0:00:52.2]} 61... Rxf2 {[%clk 0:00:20.4]} 62. Kxf2
{[%clk 0:00:53.1]} 62... Qd5 {[%clk 0:00:18]} 63. Ke2 {[%clk 0:00:53.1]} 63...
Kf5 {[%clk 0:00:18.6]} 64. Kf2 {[%clk 0:00:52.5]} 64... Ke4 {[%clk 0:00:18.9]}
65. Ke2 {[%clk 0:00:49.2]} 65... Qa2+ {[%clk 0:00:18.4]} 66. Bd2 {[%clk
0:00:48.3]} 66... Qb2 {[%clk 0:00:18.5]} 0-1

[Event "Late-Titled-Tuesday-Blitz-October-17-2023"]
[Site "Chess.com"]
[Date "2023.10.17"]
[Round "5"]
[White "AryanTari"]
[Black "VincentKeymer"]
[Result "1-0"]
[WhiteElo "2960"]
[BlackElo "3084"]
[TimeControl "180+1"]
[EndTime "14:55:24 PDT"]
[Termination "AryanTari won by resignation"]

1. e4 {[%clk 0:02:54.1]} 1... e5 {[%clk 0:02:55.8]} 2. Nf3 {[%clk 0:02:53.5]}
2... Nc6 {[%clk 0:02:55.3]} 3. d4 {[%clk 0:02:53.2]} 3... exd4 {[%clk
0:02:53.5]} 4. Nxd4 {[%clk 0:02:54.1]} 4... Nf6 {[%clk 0:02:53.4]} 5. Nxc6
{[%clk 0:02:46.9]} 5... bxc6 {[%clk 0:02:53.1]} 6. Nd2 {[%clk 0:02:47.1]} 6...
Bc5 {[%clk 0:02:52.6]} 7. Nb3 {[%clk 0:02:40.1]} 7... Nxe4 {[%clk 0:02:51.8]} 8.
Nxc5 {[%clk 0:02:37.9]} 8... Nxc5 {[%clk 0:02:51.6]} 9. Be3 {[%clk 0:02:36]}
9... Qe7 {[%clk 0:02:49.5]} 10. Qh5 {[%clk 0:02:35.8]} 10... d5 {[%clk
0:02:49.6]} 11. O-O-O {[%clk 0:02:33.5]} 11... O-O {[%clk 0:02:49.4]} 12. Bd4
{[%clk 0:02:13.7]} 12... Ne6 {[%clk 0:02:27.6]} 13. Re1 {[%clk 0:02:02.8]} 13...
Qg5+ {[%clk 0:02:14.1]} 14. Qxg5 {[%clk 0:02:02.5]} 14... Nxg5 {[%clk 0:02:15]}
15. Bd3 {[%clk 0:01:43.8]} 15... Ne6 {[%clk 0:02:12.1]} 16. Be5 {[%clk
0:01:43.4]} 16... f6 {[%clk 0:02:09.9]} 17. Bg3 {[%clk 0:01:41.5]} 17... g6
{[%clk 0:02:09.9]} 18. h4 {[%clk 0:01:40.9]} 18... Bd7 {[%clk 0:01:58.5]} 19. h5
{[%clk 0:01:39.3]} 19... Kg7 {[%clk 0:01:58.9]} 20. hxg6 {[%clk 0:01:35.2]}
20... hxg6 {[%clk 0:01:59.8]} 21. Bxc7 {[%clk 0:01:35.3]} 21... Rh8 {[%clk
0:01:45.7]} 22. Bd6 {[%clk 0:01:35.2]} 22... Rxh1 {[%clk 0:01:44.9]} 23. Rxh1
{[%clk 0:01:36.1]} 23... Re8 {[%clk 0:01:43.7]} 24. Kd2 {[%clk 0:01:35.1]} 24...
Ng5 {[%clk 0:01:41]} 25. f3 {[%clk 0:01:30.3]} 25... Nf7 {[%clk 0:01:40.6]} 26.
Bc5 {[%clk 0:01:30.6]} 26... Ne5 {[%clk 0:01:37.8]} 27. Bxa7 {[%clk 0:01:11.6]}
27... Ra8 {[%clk 0:01:35.1]} 28. Bc5 {[%clk 0:01:12.2]} 28... Rxa2 {[%clk
0:01:32.5]} 29. Ba3 {[%clk 0:01:12]} 29... c5 {[%clk 0:01:19]} 30. c3 {[%clk
0:01:05.9]} 30... Nxd3 {[%clk 0:00:52]} 31. Kxd3 {[%clk 0:01:06.2]} 31... Bf5+
{[%clk 0:00:52.7]} 32. Ke3 {[%clk 0:01:02.7]} 32... g5 {[%clk 0:00:52.5]} 33.
Rd1 {[%clk 0:00:44.8]} 33... Be6 {[%clk 0:00:46.1]} 34. Rd2 {[%clk 0:00:45]}
34... d4+ {[%clk 0:00:37.5]} 35. cxd4 {[%clk 0:00:45.9]} 35... cxd4+ {[%clk
0:00:38.3]} 36. Kxd4 {[%clk 0:00:45.9]} 36... Ra1 {[%clk 0:00:38.8]} 37. Bc5
{[%clk 0:00:42.8]} 37... Kf7 {[%clk 0:00:36.5]} 38. b4 {[%clk 0:00:42.6]} 38...
Rc1 {[%clk 0:00:36.1]} 39. Rb2 {[%clk 0:00:41.2]} 39... Rd1+ {[%clk 0:00:20.9]}
40. Ke3 {[%clk 0:00:40.4]} 40... Rd5 {[%clk 0:00:21.2]} 41. Rb1 {[%clk
0:00:34.9]} 41... Bd7 {[%clk 0:00:20.2]} 42. Ra1 {[%clk 0:00:30.2]} 42... f5
{[%clk 0:00:19.9]} 43. f4 {[%clk 0:00:29.4]} 43... gxf4+ {[%clk 0:00:19.6]} 44.
Kxf4 {[%clk 0:00:30.3]} 44... Rd2 {[%clk 0:00:19.3]} 45. g3 {[%clk 0:00:29.2]}
45... Rd3 {[%clk 0:00:18.9]} 46. Ra6 {[%clk 0:00:27.7]} 46... Be6 {[%clk
0:00:16.6]} 47. b5 {[%clk 0:00:25.9]} 47... Rc3 {[%clk 0:00:16]} 48. Rc6 {[%clk
0:00:25.8]} 48... Rc4+ {[%clk 0:00:16]} 49. Ke5 {[%clk 0:00:26.1]} 49... Re4+
{[%clk 0:00:15.8]} 50. Kd6 {[%clk 0:00:26.6]} 50... Re2 {[%clk 0:00:12.9]} 51.
Rc7+ {[%clk 0:00:25.8]} 51... Kf6 {[%clk 0:00:09.2]} 52. Bd4+ {[%clk 0:00:26.1]}
52... Kg6 {[%clk 0:00:09.6]} 53. Re7 {[%clk 0:00:26.3]} 53... Bc4 {[%clk
0:00:08.9]} 54. Rxe2 {[%clk 0:00:26.2]} 54... Bxe2 {[%clk 0:00:09.8]} 55. b6
{[%clk 0:00:26.7]} 55... Bf3 {[%clk 0:00:07]} 56. Kc7 {[%clk 0:00:26.7]} 56...
Kg5 {[%clk 0:00:04.7]} 57. Be3+ {[%clk 0:00:26.9]} 57... Kg4 {[%clk 0:00:04.4]}
58. Bf4 {[%clk 0:00:27.8]} 1-0

[Event "Late-Titled-Tuesday-Blitz-October-17-2023"]
[Site "Chess.com"]
[Date "2023.10.17"]
[Round "5"]
[White "Zhigalko_Sergei"]
[Black "cassoulet"]
[Result "1/2-1/2"]
[WhiteElo "2956"]
[BlackElo "2800"]
[TimeControl "180+1"]
[EndTime "14:55:24 PDT"]
[Termination "Game drawn by repetition"]

1. e4 {[%clk 0:03:00.9]} 1... c5 {[%clk 0:02:59.6]} 2. Nf3 {[%clk 0:03:01.1]}
2... e6 {[%clk 0:02:58.7]} 3. c3 {[%clk 0:03:01.3]} 3... d5 {[%clk 0:02:58.1]}
4. e5 {[%clk 0:03:01]} 4... Qb6 {[%clk 0:02:56.9]} 5. d4 {[%clk 0:03:01.9]} 5...
Bd7 {[%clk 0:02:56.8]} 6. Be2 {[%clk 0:03:02.1]} 6... Bb5 {[%clk 0:02:56]} 7.
Bxb5+ {[%clk 0:03:02.2]} 7... Qxb5 {[%clk 0:02:56.9]} 8. a4 {[%clk 0:03:03.1]}
8... Qa6 {[%clk 0:02:55.1]} 9. dxc5 {[%clk 0:03:01.6]} 9... Bxc5 {[%clk
0:02:53.9]} 10. b4 {[%clk 0:03:02.3]} 10... Be7 {[%clk 0:02:51.6]} 11. Na3
{[%clk 0:03:02.6]} 11... Qc6 {[%clk 0:02:39.7]} 12. O-O {[%clk 0:02:59]} 12...
a6 {[%clk 0:02:35.5]} 13. Bd2 {[%clk 0:02:42.7]} 13... Nd7 {[%clk 0:02:35.2]}
14. Re1 {[%clk 0:02:36.1]} 14... Nh6 {[%clk 0:02:33.8]} 15. Nd4 {[%clk
0:02:36.2]} 15... Qc7 {[%clk 0:02:32.7]} 16. Bxh6 {[%clk 0:02:35.3]} 16... gxh6
{[%clk 0:02:32.4]} 17. Qh5 {[%clk 0:02:36]} 17... O-O {[%clk 0:02:18]} 18. Re3
{[%clk 0:02:15.4]} 18... Kh8 {[%clk 0:02:16.4]} 19. Rae1 {[%clk 0:02:10.1]}
19... Bg5 {[%clk 0:02:02.2]} 20. h4 {[%clk 0:01:17.5]} 20... Bxe3 {[%clk
0:01:50.5]} 21. Rxe3 {[%clk 0:01:18.4]} 21... Rae8 {[%clk 0:01:44.3]} 22. Qxh6
{[%clk 0:01:03.5]} 22... Rg8 {[%clk 0:01:39]} 23. Nf3 {[%clk 0:00:55.8]} 23...
Rg6 {[%clk 0:01:32.4]} 24. Qh5 {[%clk 0:00:55.5]} 24... Reg8 {[%clk 0:01:26]}
25. Ng5 {[%clk 0:00:50.1]} 25... R8g7 {[%clk 0:01:23.8]} 26. Nc2 {[%clk
0:00:48.1]} 26... Kg8 {[%clk 0:01:10.8]} 27. Nd4 {[%clk 0:00:29]} 27... h6
{[%clk 0:01:05.7]} 28. f4 {[%clk 0:00:14]} 28... hxg5 {[%clk 0:01:03.7]} 29.
hxg5 {[%clk 0:00:14.9]} 29... Rh7 {[%clk 0:01:03.6]} 30. Qe2 {[%clk 0:00:15]}
30... Qc4 {[%clk 0:01:01]} 31. Qe1 {[%clk 0:00:13.1]} 31... a5 {[%clk
0:00:45.2]} 32. bxa5 {[%clk 0:00:11.5]} 32... Nc5 {[%clk 0:00:45.4]} 33. f5
{[%clk 0:00:02.7]} 33... Rxg5 {[%clk 0:00:40.7]} 34. Rg3 {[%clk 0:00:03.4]}
34... Rhg7 {[%clk 0:00:32.6]} 35. Rxg5 {[%clk 0:00:02.9]} 35... Rxg5 {[%clk
0:00:33.5]} 36. Qh4 {[%clk 0:00:03.4]} 36... Ne4 {[%clk 0:00:30.8]} 37. fxe6
{[%clk 0:00:01.9]} 37... Qxc3 {[%clk 0:00:15.2]} 38. exf7+ {[%clk 0:00:02.3]}
38... Kxf7 {[%clk 0:00:15.7]} 39. Qh7+ {[%clk 0:00:02.9]} 39... Rg7 {[%clk
0:00:12.7]} 40. Qf5+ {[%clk 0:00:03]} 40... Kg8 {[%clk 0:00:12.7]} 41. Qe6+
{[%clk 0:00:03]} 41... Kh7 {[%clk 0:00:11.4]} 42. Qf5+ {[%clk 0:00:03.3]} 42...
Rg6 {[%clk 0:00:11.1]} 43. Qh5+ {[%clk 0:00:02.9]} 43... Rh6 {[%clk 0:00:04.9]}
44. Qf7+ {[%clk 0:00:02.7]} 44... Kh8 {[%clk 0:00:05.5]} 45. Qf8+ {[%clk
0:00:03.1]} 45... Kh7 {[%clk 0:00:06.1]} 46. Qf7+ {[%clk 0:00:03.3]} 46... Kh8
{[%clk 0:00:06.7]} 47. Qf8+ {[%clk 0:00:02.7]} 47... Kh7 {[%clk 0:00:07.2]} 48.
Qf7+ {[%clk 0:00:03.6]} 1/2-1/2

[Event "Late-Titled-Tuesday-Blitz-October-17-2023"]
[Site "Chess.com"]
[Date "2023.10.17"]
[Round "5"]
[White "Goryachkina"]
[Black "Perecke"]
[Result "1-0"]
[WhiteElo "2646"]
[BlackElo "2519"]
[TimeControl "180+1"]
[EndTime "14:55:28 PDT"]
[Termination "Goryachkina won by checkmate"]

1. e4 {[%clk 0:02:59.4]} 1... c5 {[%clk 0:02:59.6]} 2. Nf3 {[%clk 0:02:59.1]}
2... e6 {[%clk 0:02:59.9]} 3. d4 {[%clk 0:02:58]} 3... cxd4 {[%clk 0:03:00.8]}
4. Nxd4 {[%clk 0:02:57.7]} 4... Nc6 {[%clk 0:03:01.2]} 5. Nc3 {[%clk 0:02:55]}
5... Qc7 {[%clk 0:03:01.2]} 6. g3 {[%clk 0:02:54.5]} 6... a6 {[%clk 0:02:55.9]}
7. Bg2 {[%clk 0:02:53.7]} 7... Nf6 {[%clk 0:02:53.9]} 8. O-O {[%clk 0:02:52.3]}
8... Bc5 {[%clk 0:02:50.6]} 9. Nb3 {[%clk 0:02:44.4]} 9... Be7 {[%clk
0:02:46.5]} 10. Bf4 {[%clk 0:02:41.4]} 10... d6 {[%clk 0:02:44.6]} 11. Qe2
{[%clk 0:02:38.7]} 11... O-O {[%clk 0:02:43]} 12. h3 {[%clk 0:02:33.8]} 12...
Ne5 {[%clk 0:02:27.4]} 13. Rad1 {[%clk 0:02:30.7]} 13... b5 {[%clk 0:02:25.9]}
14. g4 {[%clk 0:02:15.1]} 14... Bb7 {[%clk 0:02:22.2]} 15. g5 {[%clk 0:02:14.3]}
15... Nfd7 {[%clk 0:02:21.4]} 16. h4 {[%clk 0:02:12]} 16... Nc4 {[%clk
0:02:14.3]} 17. Bc1 {[%clk 0:02:09]} 17... b4 {[%clk 0:01:42.4]} 18. Nb1 {[%clk
0:02:03.9]} 18... a5 {[%clk 0:01:35.7]} 19. f4 {[%clk 0:01:52.4]} 19... a4
{[%clk 0:01:30.4]} 20. Nd4 {[%clk 0:01:50]} 20... Ba6 {[%clk 0:01:29.7]} 21. Qg4
{[%clk 0:01:45.9]} 21... a3 {[%clk 0:01:27.4]} 22. bxa3 {[%clk 0:01:40.1]} 22...
Nxa3 {[%clk 0:01:24.1]} 23. Nxa3 {[%clk 0:01:09.4]} 23... Bxf1 {[%clk
0:01:22.5]} 24. Rxf1 {[%clk 0:00:58.8]} 24... bxa3 {[%clk 0:01:20.6]} 25. f5
{[%clk 0:00:53.3]} 25... Qc3 {[%clk 0:01:13.7]} 26. Nf3 {[%clk 0:00:44.2]} 26...
exf5 {[%clk 0:01:04.2]} 27. exf5 {[%clk 0:00:43]} 27... d5 {[%clk 0:01:03.9]}
28. f6 {[%clk 0:00:40.3]} 28... Bc5+ {[%clk 0:01:03.5]} 29. Kh1 {[%clk
0:00:39.9]} 29... Qc4 {[%clk 0:01:02]} 30. Qxd7 {[%clk 0:00:35.2]} 30... Qxa2
{[%clk 0:00:56]} 31. fxg7 {[%clk 0:00:34.9]} 31... Rfd8 {[%clk 0:00:54.9]} 32.
Qf5 {[%clk 0:00:34.3]} 32... Qc4 {[%clk 0:00:34.9]} 33. h5 {[%clk 0:00:33.6]}
33... a2 {[%clk 0:00:20.9]} 34. g6 {[%clk 0:00:30.9]} 34... hxg6 {[%clk
0:00:20]} 35. hxg6 {[%clk 0:00:29.8]} 35... Ra7 {[%clk 0:00:18.9]} 36. Ng5
{[%clk 0:00:13.4]} 36... Qh4+ {[%clk 0:00:17.8]} 37. Bh3 {[%clk 0:00:13.1]}
37... fxg6 {[%clk 0:00:17.1]} 38. Qe6+ {[%clk 0:00:09.5]} 38... Kxg7 {[%clk
0:00:16.3]} 39. Rf7+ {[%clk 0:00:09.6]} 39... Kh6 {[%clk 0:00:12.1]} 40. Nf3+
{[%clk 0:00:07.2]} 40... Kh5 {[%clk 0:00:08]} 41. Nxh4 {[%clk 0:00:07]} 41...
a1=Q {[%clk 0:00:06.7]} 42. Qg4# {[%clk 0:00:06.8]} 1-0